bitfinex/quotes_SOLUSD_20240604
["timestamp","ask_amount","ask_price","bid_price","bid_amount"]
[1717516434897,12.47395682,167.86,167.76,120.0]
[1717516435062,2.2044,167.85,167.77,2.3753]
[1717516435263,12.47395682,167.86,167.77,0.17]
[1717516435264,2.2044,167.84,167.77,0.17]
[1717516435494,12.47395682,167.86,167.78,8.7443251]
[1717516435495,6.21755682,167.86,167.78,8.7443251]
[1717516435676,15.0714,167.82,167.78,8.7443251]
[1717516436085,6.2732,167.81,167.78,8.7443251]
[1717516436865,6.2732,167.81,167.76,130.94070113]
[1717516437116,6.2732,167.81,167.77,8.73530113]
[1717516437882,6.2732,167.81,167.76,130.94070113]
[1717516438287,6.2732,167.81,167.76,10.94070113]
[1717516438495,6.0234,167.8,167.76,8.73530113]
[1717516439091,6.0234,167.79,167.76,8.73530113]
[1717516439982,6.0234,167.79,167.75,10.94090113]
[1717516440294,6.0234,167.79,167.76,2.2055]
[1717516440494,18.1486,167.84,167.75,8.73530113]
[1717516440495,6.3267,167.78,167.75,10.94090113]
[1717516440702,6.3267,167.78,167.75,8.73530113]
[1717516440886,6.5353,167.83,167.74,8.73530113]
[1717516441080,15.3412,167.79,167.74,8.73530113]
[1717516441389,27.0153,167.77,167.73,8.73530113]
[1717516441794,27.0153,167.77,167.73,10.94120113]
[1717516442396,27.0153,167.77,167.74,8.73530113]
[1717516442606,20.48,167.77,167.74,8.73530113]
[1717516442779,6.034,167.78,167.74,8.73530113]
[1717516442979,6.034,167.78,167.73,8.73530113]
[1717516443501,21.3752,167.79,167.73,8.73530113]
[1717516443793,23.5803,167.79,167.73,8.73530113]
[1717516444003,21.3752,167.79,167.73,8.73530113]
[1717516444391,23.5803,167.79,167.73,8.73530113]
[1717516444695,21.3752,167.79,167.73,8.73530113]
[1717516445406,23.5803,167.79,167.73,8.73530113]
[1717516445580,21.3752,167.79,167.73,8.73530113]
[1717516445780,21.3752,167.79,167.73,8.74144243]
[1717516446108,6.2432,167.78,167.74,8.74144243]
[1717516446477,6.2432,167.78,167.73,8.74144243]
[1717516446912,6.2432,167.78,167.72,131.11744243]
[1717516447093,6.2432,167.78,167.73,8.74144243]
[1717516447511,6.2432,167.78,167.73,8.73992488]
[1717516447819,6.1306,167.77,167.73,8.73992488]
[1717516447978,6.1306,167.77,167.72,128.73992488]
[1717516448717,8.3358,167.78,167.72,128.73992488]
[1717516448881,6.1306,167.78,167.72,128.73992488]
[1717516449206,6.1306,167.78,167.72,8.73992488]
[1717516449605,6.1306,167.78,167.72,10.94592488]
[1717516449975,6.1306,167.78,167.72,8.73992488]
[1717516450178,6.1306,167.78,167.71,2.3761]
[1717516450179,6.1306,167.78,167.73,8.73992488]
[1717516450376,37.71755502,167.84,167.73,8.73992488]
[1717516450377,16.3511,167.8,167.73,8.73992488]
[1717516450592,18.5563,167.78,167.73,8.73992488]
[1717516450998,6.026,167.77,167.73,8.73992488]
[1717516451200,2.2054,167.77,167.72,8.73992488]
[1717516451408,6.026,167.75,167.72,8.73992488]
[1717516451584,6.3003,167.74,167.72,8.73992488]
[1717516451780,6.3003,167.73,167.71,8.73992488]
[1717516452406,8.5063,167.72,167.71,8.73992488]
[1717516452593,6.3003,167.71,167.69,8.73992488]
[1717516452793,6.3003,167.76,167.69,10.94632488]
[1717516452999,8.5059,167.76,167.68,2.2065]
[1717516453195,6.3003,167.76,167.69,122.2063]
[1717516453404,21.55,167.82,167.71,120.0]
[1717516453714,20.48,167.78,167.71,122.2061]
[1717516453911,20.48,167.78,167.71,120.0]
[1717516454209,2.2055,167.76,167.7,8.73992488]
[1717516454391,6.5481,167.74,167.68,2.2065]
[1717516454591,6.5481,167.74,167.67,11.11652488]
[1717516454796,8.7539,167.74,167.67,11.12407581]
[1717516455001,6.5481,167.74,167.67,10.95407581]
[1717516455293,6.5481,167.74,167.67,8.74737581]
[1717516455294,2.206,167.72,167.67,8.74737581]
[1717516455504,2.2059,167.73,167.66,8.74737581]
[1717516455721,22.9222,167.74,167.66,8.74737581]
[1717516455937,22.9222,167.74,167.69,2.2063]
[1717516455938,6.6357,167.74,167.69,2.2063]
[1717516456235,6.6357,167.74,167.68,8.74737581]
[1717516456397,8.8635,167.78,167.69,2.2064]
[1717516456715,8.8635,167.78,167.7,120.17]
[1717516457014,6.6582,167.78,167.7,122.3763]
[1717516457205,6.6582,167.78,167.7,120.17]
[1717516457422,6.6582,167.78,167.71,2.2061]
[1717516457612,6.6582,167.78,167.72,122.206]
[1717516457938,6.6582,167.78,167.7,9.08737581]
[1717516457939,21.782,167.83,167.75,2.2056]
[1717516458305,21.782,167.83,167.74,122.2057]
[1717516458495,23.9866,167.83,167.74,130.942511]
[1717516458825,2.2047,167.82,167.74,128.736811]
[1717516458994,21.782,167.83,167.74,128.736811]
[1717516458995,23.9866,167.83,167.74,130.942511]
[1717516459193,2.2047,167.82,167.74,130.942511]
[1717516459893,2.2047,167.82,167.74,128.736811]
[1717516460319,2.2047,167.82,167.74,128.73192825]
[1717516460938,2.2047,167.82,167.74,130.93762825]
[1717516461821,23.9866,167.83,167.76,120.0]
[1717516462023,21.7324,167.87,167.78,120.0]
[1717516462606,2.2044,167.84,167.78,120.0]
[1717516463614,2.2044,167.84,167.77,0.34]
[1717516463815,21.7324,167.87,167.76,120.0]
[1717516463816,2.2046,167.83,167.76,120.0]
[1717516464045,2.2046,167.83,167.74,130.93762825]
[1717516464233,2.2046,167.83,167.75,0.17]
[1717516464414,2.2046,167.83,167.74,130.93762825]
[1717516464827,28.3449,167.87,167.74,128.73192825]
[1717516465018,2.2049,167.81,167.74,8.73192825]
[1717516466327,2.2049,167.81,167.73,10.93782825]
[1717516466838,49.4084,167.86,167.74,128.73192825]
[1717516467138,2.2046,167.83,167.75,2.2056]
[1717516467320,2.2047,167.82,167.74,122.2057]
[1717516467505,2.2046,167.83,167.75,2.2055]
[1717516467705,2.2044,167.84,167.76,2.3754]
[1717516467914,28.3449,167.87,167.74,120.17]
[1717516468112,2.2047,167.82,167.74,122.2057]
[1717516468313,2.2047,167.82,167.74,2.2057]
[1717516468515,49.4085,167.86,167.73,2.3758]
[1717516468516,2.2048,167.81,167.73,2.3758]
[1717516468744,2.2048,167.81,167.74,0.17]
[1717516469127,2.2048,167.81,167.73,10.94182046]
[1717516469435,2.2047,167.82,167.74,2.2057]
[1717516470538,26.5013,167.77,167.72,8.73602046]
[1717516470921,26.5013,167.77,167.7,2.2062]
[1717516471120,26.5013,167.77,167.71,2.2061]
[1717516471320,26.5013,167.77,167.7,2.2063]
[1717516471633,26.5013,167.77,167.71,2.2061]
[1717516472839,6.0213,167.77,167.72,2.206]
[1717516473033,6.0213,167.77,167.71,2.2061]
[1717516474045,6.0213,167.77,167.72,2.206]
[1717516474827,2.995,167.75,167.72,2.206]
[1717516475365,2.995,167.75,167.73,2.2058]
[1717516475728,2.995,167.75,167.72,2.376]
[1717516476762,2.995,167.75,167.72,0.17]
[1717516477054,2.995,167.75,167.73,2.2059]
[1717516477566,2.995,167.75,167.74,2.2057]
[1717516477756,2.995,167.75,167.74,2.3757]
[1717516478143,2.995,167.75,167.73,122.2058]
[1717516479843,2.995,167.75,167.73,120.0]
[1717516480050,2.995,167.75,167.73,122.2058]
[1717516480229,2.995,167.75,167.74,0.17]
[1717516480636,2.995,167.75,167.74,2.3757]
[1717516480859,2.995,167.75,167.74,2.5457]
[1717516486063,2.995,167.75,167.73,120.0]
[1717516486259,2.995,167.75,167.71,130.94777097]
[1717516486443,2.995,167.75,167.69,120.0]
[1717516486763,2.995,167.75,167.73,2.2058]
[1717516487146,2.995,167.75,167.73,122.2058]
[1717516487872,2.995,167.75,167.74,0.34]
[1717516488769,2.995,167.75,167.74,2.5457]
[1717516493060,2.995,167.75,167.74,13.3047]
[1717516493255,2.995,167.75,167.74,19.922]
[1717516493455,8.7357,167.85,167.78,2.2051]
[1717516493643,2.2044,167.84,167.77,122.2053]
[1717516494866,2.2044,167.84,167.77,120.0]
[1717516495078,2.2044,167.84,167.77,122.2053]
[1717516495869,6.5314,167.85,167.77,120.0]
[1717516496168,22.6845,167.84,167.77,122.2053]
[1717516496374,22.6845,167.84,167.77,120.0]
[1717516496976,22.6845,167.84,167.77,122.2053]
[1717516497266,2.2046,167.83,167.76,0.34]
[1717516497571,22.6844,167.84,167.77,122.2053]
[1717516498150,22.6844,167.84,167.77,120.0]
[1717516498471,22.6844,167.84,167.77,122.2053]
[1717516498776,2.2046,167.83,167.76,2.5454]
[1717516499164,2.2046,167.83,167.76,0.34]
[1717516499369,2.2046,167.83,167.75,2.2056]
[1717516499580,2.2047,167.82,167.75,2.2056]
[1717516499760,22.6845,167.84,167.76,2.2054]
[1717516499960,2.2046,167.83,167.76,2.2054]
[1717516500252,2.2049,167.81,167.74,2.2057]
[1717516500455,2.2051,167.8,167.72,2.206]
[1717516500660,2.2052,167.79,167.71,122.2061]
[1717516501182,2.2049,167.81,167.73,120.0]
[1717516501360,2.2049,167.81,167.74,2.2057]
[1717516501759,2.2049,167.81,167.73,122.2058]
[1717516502171,2.2049,167.81,167.74,2.2057]
[1717516503061,10.9402,167.85,167.75,120.0]
[1717516503263,2.2047,167.82,167.75,122.2056]
[1717516503483,2.2048,167.81,167.74,2.3757]
[1717516503781,4.409,167.84,167.74,2.3757]
[1717516503966,2.205,167.8,167.74,0.17]
[1717516504152,2.205,167.8,167.74,0.34]
[1717516504554,2.2049,167.81,167.74,2.5457]
[1717516504753,2.205,167.8,167.74,0.17]
[1717516505059,4.4092,167.83,167.73,2.2058]
[1717516505484,2.2051,167.8,167.73,2.2058]
[1717516505865,2.2051,167.79,167.73,2.2058]
[1717516506059,2.2051,167.79,167.72,2.206]
[1717516506583,2.205,167.8,167.73,2.2059]
[1717516506787,6.83,167.74,167.73,2.2059]
[1717516507877,2.205,167.8,167.73,2.2059]
[1717516508592,2.2053,167.78,167.71,122.2061]
[1717516508883,8.6864,167.78,167.71,2.2061]
[1717516509180,2.2054,167.77,167.71,2.2061]
[1717516509378,2.2054,167.77,167.7,2.2062]
[1717516509592,2.2057,167.75,167.69,122.2064]
[1717516509759,2.2055,167.76,167.69,122.2064]
[1717516510087,6.83,167.7,167.69,122.2064]
[1717516510282,6.83,167.7,167.69,2.2064]
[1717516510663,6.83,167.7,167.69,122.2064]
[1717516510873,27.32,167.76,167.71,2.2061]
[1717516511064,27.32,167.76,167.7,2.2062]
[1717516511463,29.5255,167.76,167.7,2.2062]
[1717516511801,29.5255,167.76,167.69,2.2064]
[1717516512170,27.32,167.76,167.7,2.2063]
[1717516512473,27.32,167.76,167.69,2.2064]
[1717516512474,29.5256,167.76,167.69,2.2064]
[1717516512783,29.5256,167.76,167.7,2.2062]
[1717516513186,2.2057,167.75,167.69,2.2064]
[1717516513695,27.32,167.76,167.7,2.2063]
[1717516513904,29.5255,167.76,167.69,2.2064]
[1717516514100,29.5255,167.76,167.7,2.2063]
[1717516514399,29.5255,167.76,167.69,2.2063]
[1717516514597,32.93301496,167.75,167.65,8.8276]
[1717516514804,15.75057237,167.74,167.68,120.0]
[1717516515096,15.75057237,167.73,167.69,2.2064]
[1717516515304,15.75057237,167.72,167.71,2.2061]
[1717516515473,39.76301496,167.72,167.71,2.2061]
[1717516515677,6.83,167.72,167.71,9.12922437]
[1717516516379,27.32,167.76,167.71,9.12922437]
[1717516516607,27.32,167.76,167.72,9.12922437]
[1717516516794,27.32,167.76,167.73,9.12922437]
[1717516516971,27.32,167.76,167.74,9.12922437]
[1717516517304,36.1264,167.76,167.75,9.12922437]
[1717516517597,51.7046,167.76,167.75,4.8338993]
[1717516518797,2.2061,167.72,167.66,2.2067]
[1717516519013,2.2059,167.73,167.67,7.0439334]
[1717516519376,6.0422,167.74,167.66,2.2067]
[1717516519690,2.2059,167.73,167.67,2.2067]
[1717516519874,2.206,167.72,167.66,2.2068]
[1717516520284,6.0422,167.74,167.64,120.0]
[1717516520477,10.4539,167.74,167.64,120.0]
[1717516520681,2.2061,167.72,167.66,2.2067]
[1717516521074,2.2062,167.71,167.65,2.2069]
[1717516521491,6.83,167.66,167.65,2.2069]
[1717516522106,6.83,167.66,167.64,2.207]
[1717516522401,2.2063,167.7,167.64,2.207]
[1717516522789,4.4118,167.73,167.63,1.03772488]
[1717516523111,4.4118,167.73,167.64,2.207]
[1717516523112,2.2063,167.7,167.64,2.207]
[1717516523284,2.2062,167.71,167.65,2.2069]
[1717516523485,2.2063,167.7,167.65,2.2069]
[1717516523684,6.5353,167.7,167.65,2.2069]
[1717516523897,8.7416,167.7,167.65,2.2069]
[1717516524140,8.7416,167.7,167.64,2.207]
[1717516524374,8.7416,167.7,167.63,1.03772488]
[1717516524375,6.5353,167.7,167.65,2.2069]
[1717516525703,2.206,167.72,167.66,2.2068]
[1717516525905,6.83,167.67,167.66,2.2068]
[1717516527288,6.83,167.67,167.65,2.2069]
[1717516527496,6.83,167.66,167.64,2.207]
[1717516527681,2.2063,167.7,167.64,122.207]
[1717516528003,6.83,167.66,167.64,2.207]
[1717516528709,6.83,167.66,167.63,2.2071]
[1717516528908,4.4119,167.73,167.62,120.34]
[1717516529136,2.2062,167.71,167.65,2.2069]
[1717516529289,2.2059,167.73,167.67,2.2066]
[1717516530085,2.206,167.72,167.66,2.2067]
[1717516530683,8.4647,167.74,167.68,122.2065]
[1717516530890,2.2057,167.74,167.69,2.2064]
[1717516531090,6.83,167.7,167.69,2.2064]
[1717516531398,6.83,167.7,167.68,150.0]
[1717516531606,2.2061,167.72,167.68,30.0]
[1717516532302,2.2059,167.73,167.68,30.0]
[1717516532501,2.2058,167.74,167.68,32.2065]
[1717516532910,6.83,167.69,167.68,32.2065]
[1717516533206,6.83,167.69,167.68,32.5465]
[1717516533386,6.83,167.69,167.68,30.34]
[1717516533785,8.4474,167.76,167.68,150.34]
[1717516533980,2.2056,167.75,167.7,120.0]
[1717516534177,2.2055,167.76,167.7,152.2062]
[1717516534409,6.83,167.73,167.7,152.2062]
[1717516534584,2.2054,167.77,167.7,152.2062]
[1717516534920,6.83,167.74,167.7,152.2062]
[1717516535292,2.2053,167.78,167.71,2.2061]
[1717516535490,2.2054,167.77,167.71,32.2061]
[1717516536016,2.2054,167.77,167.71,30.0]
[1717516536597,2.2052,167.78,167.71,150.0]
[1717516536811,6.83,167.74,167.72,2.206]
[1717516537005,2.2051,167.79,167.73,120.0]
[1717516537312,64.4839,167.8,167.74,0.17]
[1717516537526,6.83,167.77,167.74,0.34]
[1717516537687,6.83,167.77,167.74,2.5457]
[1717516538007,58.205,167.8,167.75,120.0]
[1717516538214,56.0,167.8,167.75,122.2056]
[1717516538795,56.0,167.8,167.76,2.5454]
[1717516539143,6.83,167.79,167.76,32.5454]
[1717516539301,6.83,167.79,167.76,30.34]
[1717516539496,56.0,167.8,167.76,30.34]
[1717516540605,56.0,167.8,167.77,120.0]
[1717516540811,56.0,167.8,167.78,0.34]
[1717516541800,56.0,167.8,167.78,30.34]
[1717516542418,56.0,167.8,167.78,30.0]
[1717516546205,6.83,167.79,167.78,30.0]
[1717516547005,56.0,167.8,167.78,30.0]
[1717516547807,6.83,167.79,167.78,30.0]
[1717516549408,56.0,167.8,167.78,30.0]
[1717516550230,56.0,167.8,167.78,150.0]
[1717516551035,56.0,167.8,167.78,30.0]
[1717516551212,6.83,167.79,167.78,30.0]
[1717516551410,56.0,167.8,167.78,30.0]
[1717516551633,6.83,167.79,167.78,30.0]
[1717516556126,9.0351,167.79,167.78,30.0]
[1717516556638,6.83,167.79,167.78,30.0]
[1717516557431,9.0351,167.79,167.78,30.0]
[1717516557611,9.0351,167.79,167.72,122.206]
[1717516557818,6.83,167.75,167.74,30.0]
[1717516560023,2.2053,167.78,167.74,30.0]
[1717516560232,6.83,167.75,167.74,30.0]
[1717516561812,2.2054,167.77,167.74,30.0]
[1717516563125,8.4093,167.78,167.74,30.0]
[1717516563419,6.83,167.75,167.74,30.0]
[1717516564027,56.0,167.8,167.74,30.0]
[1717516564235,56.0,167.8,167.75,2.2056]
[1717516564435,58.205,167.8,167.74,150.0]
[1717516564924,58.205,167.8,167.74,152.2057]
[1717516565116,58.205,167.8,167.74,150.0]
[1717516565541,58.205,167.8,167.74,152.2057]
[1717516565744,2.2051,167.79,167.74,150.0]
[1717516566220,2.2051,167.79,167.74,30.0]
[1717516566439,6.83,167.75,167.74,30.0]
[1717516568218,2.2053,167.78,167.74,30.0]
[1717516568553,2.2051,167.79,167.74,30.0]
[1717516569124,2.2053,167.78,167.74,30.0]
[1717516569929,2.2054,167.77,167.74,30.0]
[1717516570127,6.83,167.75,167.74,30.0]
[1717516571227,6.83,167.75,167.7,2.2062]
[1717516571452,2.2057,167.75,167.71,30.0]
[1717516571658,6.83,167.72,167.71,30.0]
[1717516571857,6.83,167.72,167.67,126.4644]
[1717516572056,6.83,167.71,167.68,2.2065]
[1717516572552,2.2058,167.74,167.69,30.0]
[1717516573334,2.2057,167.75,167.69,2.2064]
[1717516573858,2.2058,167.74,167.69,2.2064]
[1717516574019,2.2057,167.75,167.69,2.2064]
[1717516574451,4.4109,167.77,167.67,120.0]
[1717516574653,2.2058,167.74,167.68,32.2065]
[1717516575125,27.32,167.76,167.69,2.2064]
[1717516575126,2.2057,167.75,167.69,2.2064]
[1717516575334,2.2056,167.75,167.69,2.2064]
[1717516578740,2.2058,167.74,167.69,2.2064]
[1717516579257,2.2056,167.75,167.69,2.2064]
[1717516579464,6.83,167.7,167.69,2.2064]
[1717516579940,6.83,167.7,167.68,2.2065]
[1717516580131,27.32,167.76,167.67,2.2066]
[1717516580132,6.83,167.69,167.67,2.2066]
[1717516580331,2.206,167.72,167.65,120.0]
[1717516580559,2.206,167.72,167.66,30.0]
[1717516581058,2.206,167.72,167.67,2.2066]
[1717516581366,6.83,167.68,167.67,2.2066]
[1717516581567,6.83,167.68,167.67,32.2066]
[1717516581773,2.2062,167.71,167.67,30.0]
[1717516581936,6.83,167.68,167.67,30.0]
[1717516582858,6.83,167.68,167.65,2.2069]
[1717516582859,6.83,167.68,167.66,2.2068]
[1717516583738,6.0497,167.72,167.66,2.2068]
[1717516584060,2.2062,167.71,167.65,122.2069]
[1717516584458,2.2063,167.7,167.65,2.2069]
[1717516585043,2.2062,167.71,167.65,2.2069]
[1717516585362,2.2063,167.7,167.65,2.2069]
[1717516585765,6.83,167.66,167.64,2.207]
[1717516585944,2.2063,167.7,167.64,2.207]
[1717516586269,8.5923,167.7,167.64,2.207]
[1717516586750,6.83,167.68,167.61,120.0]
[1717516586958,2.2069,167.66,167.62,30.0]
[1717516587138,8.5929,167.66,167.62,30.0]
[1717516587336,6.83,167.63,167.62,30.0]
[1717516587555,6.5563,167.65,167.62,30.0]
[1717516587876,6.83,167.63,167.61,30.0]
[1717516588183,2.2074,167.62,167.56,2.208]
[1717516588344,21.9546,167.63,167.55,120.0]
[1717516588548,6.83,167.56,167.55,122.2082]
[1717516588942,6.83,167.56,167.55,152.2082]
[1717516589142,6.83,167.56,167.55,30.0]
[1717516589345,2.2076,167.61,167.55,32.2082]
[1717516589554,6.316,167.6,167.55,32.2082]
[1717516589861,6.83,167.56,167.55,30.0]
[1717516590169,6.83,167.56,167.54,2.2084]
[1717516590546,6.83,167.55,167.54,2.2084]
[1717516590874,6.83,167.55,167.51,120.0]
[1717516591045,2.2078,167.59,167.52,2.2086]
[1717516591366,2.2081,167.57,167.51,2.2088]
[1717516591743,2.2082,167.56,167.5,2.5685861]
[1717516591944,6.83,167.51,167.5,2.5685861]
[1717516592557,6.83,167.51,167.5,0.3596861]
[1717516596056,6.83,167.52,167.5,2.5685861]
[1717516596453,6.83,167.51,167.5,0.3596861]
[1717516597164,2.2084,167.54,167.5,0.3596861]
[1717516597364,6.3919,167.57,167.5,0.3596861]
[1717516597561,6.83,167.51,167.5,0.3596861]
[1717516600763,13.079,167.51,167.5,0.3596861]
[1717516601978,6.249,167.51,167.5,0.3596861]
[1717516602184,15.2878,167.51,167.5,0.3596861]
[1717516602358,13.079,167.51,167.5,0.3596861]
[1717516602996,6.4366,167.56,167.5,0.3596861]
[1717516603174,6.83,167.52,167.5,0.3596861]
[1717516603491,6.83,167.53,167.52,2.2086]
[1717516604067,2.2081,167.56,167.5,2.5684861]
[1717516604370,6.83,167.52,167.51,0.17]
[1717516604575,6.83,167.52,167.51,2.3788]
[1717516604778,6.83,167.53,167.52,2.2086]
[1717516604986,6.83,167.53,167.51,2.2087]
[1717516605174,6.83,167.52,167.51,2.2087]
[1717516606099,6.83,167.52,167.5,2.5685861]
[1717516606275,6.83,167.51,167.5,2.5685861]
[1717516606468,2.2081,167.56,167.5,2.5685861]
[1717516606796,6.83,167.51,167.5,2.5685861]
[1717516607095,6.83,167.51,167.5,0.3596861]
[1717516609173,13.2168,167.51,167.5,0.3596861]
[1717516609382,29.079,167.51,167.5,0.3596861]
[1717516610396,31.2878,167.51,167.5,0.3596861]
[1717516611799,24.4578,167.51,167.5,0.3596861]
[1717516612574,13.2168,167.51,167.5,0.3596861]
[1717516613009,6.3868,167.51,167.5,0.3596861]
[1717516613300,15.4256,167.51,167.5,0.3596861]
[1717516613805,6.3868,167.51,167.5,0.3596861]
[1717516613984,15.7036,167.55,167.5,0.3596861]
[1717516614296,6.83,167.51,167.5,0.3596861]
[1717516614817,2.2084,167.54,167.5,0.3596861]
[1717516614993,6.83,167.51,167.5,0.3596861]
[1717516615976,6.83,167.51,167.5,2.5685861]
[1717516616302,6.83,167.51,167.5,0.3596861]
[1717516616684,6.3841,167.55,167.5,0.3596861]
[1717516617011,8.5924,167.55,167.5,0.3596861]
[1717516617299,6.83,167.51,167.5,2.5685861]
[1717516617486,18.4461,167.58,167.5,0.3596861]
[1717516617687,6.83,167.53,167.51,2.2087]
[1717516618195,2.2082,167.56,167.5,2.5685861]
[1717516618410,6.83,167.53,167.51,2.2087]
[1717516618586,2.208,167.57,167.51,2.2087]
[1717516618904,6.83,167.53,167.5,2.5685861]
[1717516619095,6.83,167.52,167.5,0.3596861]
[1717516619399,6.83,167.51,167.5,0.3596861]
[1717516619604,6.83,167.52,167.5,0.3596861]
[1717516619817,2.2082,167.56,167.5,2.5685861]
[1717516620201,6.83,167.52,167.5,0.3596861]
[1717516620505,6.83,167.52,167.5,2.5685861]
[1717516621295,6.5955,167.57,167.51,2.2088]
[1717516621509,8.8036,167.57,167.51,2.2088]
[1717516621747,6.5955,167.57,167.5,0.3596861]
[1717516622008,6.83,167.54,167.5,120.3596861]
[1717516622185,2.2076,167.6,167.51,0.34]
[1717516622505,27.32,167.6,167.53,2.2085]
[1717516622799,29.5276,167.6,167.54,2.2083]
[1717516624224,2.2071,167.64,167.58,2.2079]
[1717516624414,6.2522,167.65,167.55,0.34]
[1717516624586,6.83,167.6,167.58,2.2078]
[1717516624780,6.83,167.6,167.55,0.34]
[1717516624986,6.83,167.6,167.57,2.2079]
[1717516625216,6.83,167.59,167.56,2.2081]
[1717516625896,2.2072,167.63,167.56,2.2081]
[1717516626296,2.2072,167.63,167.57,2.208]
[1717516626730,6.2522,167.65,167.57,2.208]
[1717516627017,2.2072,167.63,167.56,2.2081]
[1717516627315,6.2522,167.65,167.56,2.2081]
[1717516627523,2.2072,167.63,167.56,2.2081]
[1717516627704,2.2071,167.64,167.57,2.208]
[1717516628030,6.2522,167.65,167.6,2.2076]
[1717516628193,6.2522,167.65,167.56,120.0]
[1717516628388,6.2522,167.65,167.59,2.2077]
[1717516628588,2.2067,167.67,167.61,2.2075]
[1717516629005,2.2066,167.68,167.61,2.2075]
[1717516629209,2.2068,167.66,167.6,2.2076]
[1717516629706,6.1142,167.69,167.61,2.2074]
[1717516630027,6.1142,167.69,167.6,2.2076]
[1717516630220,2.2067,167.68,167.61,2.2074]
[1717516630416,8.3206,167.69,167.62,2.2073]
[1717516630594,8.3206,167.69,167.63,2.2072]
[1717516630796,2.2064,167.69,167.63,2.2072]
[1717516631324,20.52,167.7,167.62,2.2073]
[1717516631530,2.2066,167.68,167.62,2.2073]
[1717516631832,2.2064,167.69,167.63,2.2072]
[1717516631999,22.7263,167.7,167.63,2.2072]
[1717516632202,20.52,167.7,167.58,126.1127]
[1717516632498,2.2066,167.68,167.62,2.2073]
[1717516633110,2.2066,167.68,167.61,2.2074]
[1717516634207,2.2067,167.67,167.61,2.2074]
[1717516634997,2.207,167.65,167.59,30.0]
[1717516635204,2.2071,167.64,167.59,30.0]
[1717516635400,26.785,167.66,167.56,2.208]
[1717516635617,2.2072,167.63,167.57,30.0]
[1717516635811,2.2073,167.62,167.57,30.0]
[1717516636023,2.2076,167.6,167.57,30.0]
[1717516636408,2.2076,167.6,167.54,2.2083]
[1717516636613,2.2076,167.61,167.54,2.2083]
[1717516638017,2.2076,167.6,167.54,2.2083]
[1717516638319,2.2078,167.59,167.52,2.2085]
[1717516638500,2.2079,167.58,167.52,2.2085]
[1717516638706,2.208,167.57,167.5,0.3596861]
[1717516638914,2.208,167.57,167.51,2.2087]
[1717516639106,2.2079,167.58,167.51,2.2087]
[1717516639501,2.208,167.57,167.51,2.2087]
[1717516640702,2.2079,167.58,167.52,2.2086]
[1717516641318,2.2079,167.58,167.51,2.2087]
[1717516641517,6.265,167.59,167.5,2.5685861]
[1717516641707,2.2082,167.56,167.5,2.5685861]
[1717516642103,2.2082,167.56,167.5,0.3596861]
[1717516642318,6.3069,167.54,167.5,0.3596861]
[1717516642908,8.5153,167.54,167.5,0.3596861]
[1717516643615,6.6568,167.52,167.5,0.3596861]
[1717516644506,6.3468,167.51,167.5,0.3596861]
[1717516644709,6.3468,167.53,167.5,0.3596861]